fUST/lending_fUST_20251219
["ID","MTS","AMOUNT","RATE_DAILY","PERIOD"]
[399126065,1766118638256,-538.38061279,0.00013273,2]
[399126067,1766118638267,-500.0,0.00013273,2]
[399126069,1766118638278,-500.0,0.00013273,2]
[399126071,1766118638288,-500.0,0.00013699,2]
[399126073,1766118638297,-500.0,0.00013699,2]
[399126075,1766118638307,-238.85569997,0.00013699,2]
[399126077,1766118638318,-261.14430003,0.00013699,2]
[399126079,1766118638327,-110.95293021,0.00013699,2]
[399126279,1766118640611,-3e-08,0.00013699,2]
[399126281,1766118640625,-389.04706976,0.00013699,2]
[399126283,1766118640635,-500.0,0.00013699,2]
[399126285,1766118640644,-370.69718485,0.00013699,2]
[399126287,1766118640653,-500.0,0.00013699,2]
[399126289,1766118640662,-500.0,0.00013699,2]
[399126291,1766118640671,-500.0,0.00013699,2]
[399126293,1766118640680,-500.0,0.00013699,2]
[399126295,1766118640690,-500.0,0.00013699,2]
[399126297,1766118640699,-597.90590626,0.00013699,2]
[399126299,1766118640707,-500.0,0.00013699,2]
[399126301,1766118640716,-500.0,0.00013699,2]
[399126303,1766118640727,-500.0,0.00013699,2]
[399126305,1766118640737,-500.0,0.00013699,2]
[399126307,1766118640746,-500.0,0.00013699,2]
[399126309,1766118640755,-500.0,0.00013699,2]
[399126311,1766118640764,-500.0,0.00013699,2]
[399126313,1766118640773,-528.07296497,0.00013821,2]
[399126315,1766118640782,-1000.0,0.00013821,2]
[399126317,1766118640790,-1000.0,0.00013821,2]
[399126319,1766118640799,-300.0,0.00014096,2]
[399126321,1766118640808,-300.0,0.00014096,2]
[399126323,1766118640817,-300.0,0.00014096,2]
[399126325,1766118640828,-300.0,0.00014096,2]
[399126327,1766118640837,-300.0,0.00014096,2]
[399126329,1766118640846,-300.0,0.00014096,2]
[399126331,1766118640855,-300.0,0.00014096,2]
[399126333,1766118640863,-300.0,0.00014096,2]
[399126335,1766118640872,-300.0,0.00014096,2]
[399126337,1766118640881,-300.0,0.00014096,2]
[399126339,1766118640890,-300.0,0.00014096,2]
[399126341,1766118640899,-300.0,0.00014096,2]
[399126343,1766118640908,-300.0,0.00014096,2]
[399126345,1766118640917,-151.02001166,0.00014096,2]
[399126644,1766118643790,-148.97998834,0.00014096,2]
[399126646,1766118643799,-300.0,0.00014096,2]
[399126648,1766118643809,-51.02001166,0.00014247,2]
[399126676,1766118644078,-948.97998834,0.00014247,2]
[399126678,1766118644088,-226.06646198,0.00014247,2]
[399126680,1766118644097,-1000.0,0.00014247,2]
[399126682,1766118644107,-504.79194362,0.00014247,2]
[399126684,1766118644117,-500.0,0.00014247,2]
[399126686,1766118644127,-1500.0,0.00014368,2]
[399126688,1766118644136,-534.53070592,0.00014368,2]
[399126690,1766118644146,-600.0,0.00014377,2]
[399126692,1766118644156,-1500.0,0.00014795,2]
[399126695,1766118644168,-1463.86181429,0.00014916,2]
[399126697,1766118644177,-6077.6732751,0.00015,2]
[399126699,1766118644187,-9678.39903632,0.00015242,2]
[399126701,1766118644196,-62.3140227,0.00015342,2]
[399127024,1766118647576,-245.35070481,0.00015342,2]
[399127026,1766118647586,-227.92786675,0.0001536,120]
[399127028,1766118647596,-720.0,0.00015815,2]
[399127030,1766118647606,-163.1002592,0.00016067,2]
[399127032,1766118647615,-864.0,0.00017396,2]
[399127034,1766118647625,-163.1002592,0.00018546,2]
[399127036,1766118647634,-1000.0,0.00019136,2]
[399127038,1766118647643,-271.23857054,0.0002005,2]
[399127040,1766118647653,-150.0,0.00020953,2]
[399127042,1766118647662,-163.1002592,0.00021026,2]
[399127044,1766118647672,-1000.0,0.00021049,2]
[399127046,1766118647681,-244.0,0.00021049,2]
[399127048,1766118647690,-210.65,0.00021951,2]
[399127050,1766118647699,-286.34941592,0.00022949,2]
[399127167,1766118780595,150.0,0.0001023,2]
[399127168,1766118781003,201.81,0.00010717,2]
[399127169,1766118781434,302.72,0.00011204,2]
[399127170,1766118781883,403.63,0.00011691,2]
[399127171,1766118782279,504.54,0.00012179,2]
[399127172,1766118782691,605.44,0.00012666,2]
[399127173,1766118783116,706.35,0.00013153,2]
[399127175,1766118789037,-477.27380803,0.00013273,2]
[399127176,1766118792097,-22.72619197,0.00013273,2]
[399127177,1766118792119,-394.385093,0.00013273,2]
[399127178,1766118795689,-105.614907,0.00013273,2]
[399127179,1766118795713,-88.05399684,0.00013273,2]
[399127180,1766118798395,-166.39,0.00013273,2]
[399127181,1766118842554,300.0,0.00013272,2]
[399127182,1766118857893,150.0,0.00010197,2]
[399127183,1766118858328,150.0,0.00010682,2]
[399127184,1766118858744,192.97,0.00011168,2]
[399127185,1766118859149,257.29,0.00011654,2]
[399127186,1766118859563,321.61,0.00012139,2]
[399127187,1766118859973,385.94,0.00012625,2]
[399127188,1766118860381,450.26,0.0001311,2]
[399127189,1766118902464,300.0,0.00013272,2]
[399127190,1766118908372,481.0,0.00013272,2]
[399127191,1766118932550,150.0,0.0001051,2]
[399127192,1766118932944,150.0,0.0001101,2]
[399127193,1766118933346,150.0,0.00011511,2]
[399127194,1766118933744,160.15,0.00012011,2]
[399127195,1766118934188,200.19,0.00012512,2]
[399127196,1766118935075,240.23,0.00013012,2]
[399127197,1766118962337,170.0,0.00013272,2]
[399127198,1766119006953,150.0,0.00010216,2]
[399127199,1766119007361,150.0,0.00010702,2]
[399127200,1766119007798,150.0,0.00011189,2]
[399127201,1766119008251,150.0,0.00011675,2]
[399127202,1766119008644,150.0,0.00012162,2]
[399127203,1766119009042,160.0,0.00012648,2]
[399127204,1766119009437,186.67,0.00013135,2]
[399127210,1766119039582,-500.0,0.00013273,2]
[399127211,1766119039612,-500.0,0.00013273,2]
[399127212,1766119039640,-500.0,0.00013273,2]
[399127213,1766119039669,-500.0,0.00013273,2]
[399127215,1766119039697,-399.77225955,0.00013273,2]
[399127217,1766119039725,-235.2075602,0.00013273,2]
[399127219,1766119039754,-150.0,0.00013393,2]
[399127221,1766119039785,-213.34,0.00013621,2]
[399127223,1766119039813,-300.0,0.00013673,2]
[399127224,1766119039842,-502.54715627,0.00013699,2]
[399127225,1766119039869,-500.34936785,0.00013699,2]
[399127226,1766119039897,-500.0,0.00013699,2]
[399127227,1766119040224,-500.0,0.00013699,2]
[399127228,1766119040254,-500.0,0.00013699,2]
[399127229,1766119040283,-500.0,0.00013699,2]
[399127230,1766119040312,-500.0,0.00013699,2]
[399127231,1766119040343,-500.0,0.00013821,2]
[399127232,1766119040374,-1000.0,0.00013821,2]
[399127233,1766119040404,-1000.0,0.00013821,2]
[399127234,1766119040433,-234.18922351,0.00013821,2]
[399127235,1766119042773,-501.61051951,0.00013273,2]
[399127236,1766119042802,-531.63155298,0.00013821,2]
[399127237,1766119042836,-240.0,0.00014108,2]
[399127238,1766119042868,-600.0,0.00014221,2]
[399127239,1766119042898,-1000.0,0.00014247,2]
[399127240,1766119042930,-510.77032884,0.00014247,2]
[399127241,1766119042961,-1000.0,0.00014247,2]
[399127242,1766119048767,-500.0,0.00013273,2]
[399127243,1766119048796,-500.0,0.00013699,2]
[399127244,1766119048825,-1000.0,0.00014247,2]
[399127245,1766119048857,-300.0,0.00014504,2]
[399127246,1766119048888,-300.0,0.00014504,2]
[399127247,1766119048919,-300.0,0.00014504,2]
[399127248,1766119048950,-300.0,0.00014504,2]
[399127249,1766119048980,-300.0,0.00014504,2]
[399127250,1766119049010,-300.0,0.00014504,2]
[399127251,1766119049041,-300.0,0.00014504,2]
[399127252,1766119049070,-300.0,0.00014504,2]
[399127253,1766119049098,-300.0,0.00014504,2]
[399127254,1766119049127,-300.0,0.00014504,2]
[399127255,1766119049451,-300.0,0.00014504,2]
[399127256,1766119049480,-300.0,0.00014504,2]
[399127257,1766119049511,-300.0,0.00014504,2]
[399127258,1766119049543,-300.0,0.00014504,2]
[399127259,1766119049572,-300.0,0.00014504,2]
[399127260,1766119049604,-266.67,0.00014594,2]
[399127261,1766119049632,-500.0,0.00014793,2]
[399127262,1766119049661,-500.0,0.00014793,2]
[399127263,1766119049690,-350.14183773,0.00014793,2]
[399127264,1766119049720,-412.55643085,0.00014793,2]
[399127265,1766119049752,-500.0,0.00014793,2]
[399127266,1766119049781,-500.0,0.00014793,2]
[399127267,1766119049810,-189.52634867,0.00014793,2]
[399127268,1766119049838,-62.2207655,0.00014793,2]
[399127269,1766119054080,-437.7792345,0.00014793,2]
[399127270,1766119054110,-500.0,0.00014793,2]
[399127271,1766119054138,-500.0,0.00014793,2]
[399127272,1766119054167,-600.0,0.00014793,2]
[399127273,1766119054194,-517.93709847,0.00014793,2]
[399127274,1766119075965,150.0,0.00010564,2]
[399127275,1766119076366,150.0,0.00011067,2]
[399127276,1766119076777,150.0,0.0001157,2]
[399127277,1766119077197,150.0,0.00012073,2]
[399127278,1766119077594,150.0,0.00012576,2]
[399127279,1766119078141,150.0,0.00013079,2]
[399127280,1766119078438,150.0,0.00013582,2]
[399127281,1766119078857,150.0,0.00014085,2]
[399127282,1766119083358,500.0,0.00013699,2]
[399127283,1766119083416,1139.59895212,0.00014247,2]
[399127284,1766119084872,500.0,0.00013273,2]
[399127285,1766119084900,500.0,0.00013699,2]
[399127286,1766119084929,646.05228719,0.00013821,2]
[399127287,1766119084959,402.92609475,0.00014247,2]
[399127288,1766119084982,597.07390525,0.00014247,2]
[399127289,1766119088064,4260.30482691,0.00014793,2]
[399127302,1766119142924,150.0,0.00010099,2]
[399127303,1766119143182,150.0,0.0001058,2]
[399127304,1766119143589,150.0,0.00011061,2]
[399127305,1766119146557,-5000.0,0.00014647,2]
[399127306,1766119146632,0.01,0.00013273,2]
[399127307,1766119146656,499.99,0.00013273,2]
[399127308,1766119146682,1000.0,0.00013821,2]
[399127309,1766119146716,500.0,0.00014368,2]
[399127310,1766119150572,500.0,0.00013699,2]
[399127311,1766119150621,1000.0,0.00014247,2]
[399127312,1766119151052,500.0,0.00013699,2]
[399127313,1766119151106,1000.0,0.00014247,2]
[399127314,1766119151497,500.0,0.00013699,2]
[399127315,1766119151539,1000.0,0.00014247,2]
[399127316,1766119153352,500.0,0.00013273,2]
[399127317,1766119153410,502.0021657,0.00013821,2]
[399127318,1766119154210,500.0,0.00013273,2]
[399127319,1766119154246,500.0,0.00013821,2]
[399127320,1766119154272,500.0,0.00013699,2]
[399127321,1766119154299,500.0,0.00013273,2]
[399127322,1766119154326,1000.0,0.00014247,2]
[399127323,1766119154684,627.14854391,0.00013273,2]
[399127324,1766119156846,870.85929039,0.00014247,2]
[399127325,1766119156872,129.14070961,0.00014247,2]
[399127326,1766119156906,500.0,0.00013699,2]
[399127327,1766119158501,500.0,0.00013699,2]
[399127328,1766119158534,1000.0,0.00014247,2]
[399127329,1766119159998,500.0,0.00013699,2]
[399127330,1766119160058,1000.0,0.00014247,2]
[399127331,1766119160094,500.0,0.00013699,2]
[399127332,1766119160149,1000.0,0.00014247,2]
[399127333,1766119162721,500.0,0.00013273,2]
[399127334,1766119162762,1000.0,0.00013821,2]
[399127335,1766119162822,1504.50382162,0.00014368,2]
[399127336,1766119164172,500.0,0.00013699,2]
[399127337,1766119165336,500.0,0.00013699,2]
[399127338,1766119165381,866.36546877,0.00014247,2]
[399127339,1766119168587,-133.63453123,0.00014247,2]
[399127340,1766119169266,600.0,0.00014221,2]
[399127341,1766119169305,500.0,0.00013699,2]
[399127342,1766119169329,900.0,0.00014768,2]
[399127343,1766119169354,969.95575667,0.00014247,2]
[399127344,1766119169384,300.0,0.00013673,2]
[399127345,1766119194612,-5000.0,0.00014647,2]
[399127346,1766119206406,0.01,0.00013699,2]
[399127347,1766119206434,499.99,0.00013699,2]
[399127348,1766119206479,500.0,0.00013273,2]
[399127349,1766119206516,1000.0,0.00013821,2]
[399127350,1766119206564,337.421615,0.00014368,2]
[399127351,1766119206921,1000.0,0.00014247,2]
[399127352,1766119207777,500.0,0.00013699,2]
[399127353,1766119207842,500.73063204,0.00014247,2]
[399127354,1766119208066,500.0,0.00013273,2]
[399127355,1766119208103,1000.0,0.00013821,2]
[399127356,1766119208419,150.0,0.00010083,2]
[399127357,1766119208817,162.68,0.00010563,2]
[399127358,1766119209237,3849.18775296,0.00014793,2]
[399127359,1766119209267,1150.81224704,0.00014793,2]
[399127360,1766119209311,244.03,0.00011043,2]
[399127361,1766119209737,325.37,0.00011523,2]
[399127362,1766119210140,406.71,0.00012003,2]
[399127363,1766119210545,488.05,0.00012483,2]
[399127364,1766119213634,-569.39,0.00012964,2]
[399127366,1766119229478,-500.0,0.00013273,2]
[399127367,1766119229516,-650.74,0.00013444,2]
[399127368,1766119229547,-263.533254,0.00013699,2]
[399127369,1766119229579,-1000.0,0.00013821,2]
[399127370,1766119229615,-732.08,0.00013924,2]
[399127371,1766119232640,429.09,0.00014368,2]
[399127372,1766119264284,500.0,0.00013273,2]
[399127373,1766119264321,1000.0,0.00013821,2]
[399127374,1766119268929,500.0,0.00013699,2]
[399127375,1766119268987,410.89201927,0.00014247,2]
[399127376,1766119269142,500.0,0.00013699,2]
[399127377,1766119269211,367.32147273,0.00014247,2]
[399127378,1766119269234,633.77779217,0.00014247,2]
[399127379,1766119271008,536.42192957,0.00013273,2]
[399127380,1766119276109,500.0,0.00013699,2]
[399127381,1766119276166,1000.0,0.00014247,2]
[399127382,1766119279935,500.0,0.00013273,2]
[399127383,1766119279990,1000.0,0.00013821,2]
[399127384,1766119282970,300.0,0.00013673,2]
[399127385,1766119283027,600.0,0.00014221,2]
[399127386,1766119285747,150.0,9.291e-05,2]
[399127387,1766119286155,150.0,9.734e-05,2]
[399127388,1766119287023,150.43,0.00010176,2]
[399127389,1766119287439,200.58,0.00010619,2]
[399127390,1766119287837,250.72,0.00011061,2]
[399127391,1766119288260,300.87,0.00011504,2]
[399127392,1766119288660,351.01,0.00011946,2]
[399127393,1766119289070,401.16,0.00012389,2]
[399127394,1766119289592,451.3,0.00012831,2]
[399127395,1766119289998,501.44,0.00013273,2]
[399127407,1766119322752,300.0,0.00014367,2]
[399127408,1766119325183,500.0,0.00013273,2]
[399127409,1766119325238,1000.0,0.00013821,2]
[399127410,1766119325524,222.30027826,0.00013699,2]
[399127411,1766119325549,277.69972174,0.00013699,2]
[399127412,1766119325577,1000.0,0.00014247,2]
[399127413,1766119360083,150.0,9.911e-05,2]
[399127414,1766119360511,150.0,0.00010383,2]
[399127415,1766119360964,208.25,0.00010855,2]
[399127416,1766119361368,277.67,0.00011327,2]
[399127417,1766119361777,347.08,0.00011799,2]
[399127418,1766119362190,416.5,0.00012271,2]
[399127419,1766119373369,-343.35606023,0.00012742,2]
[399127420,1766119437101,150.0,9.248e-05,2]
[399127421,1766119437513,150.0,9.689e-05,2]
[399127422,1766119437898,153.16,0.00010129,2]
[399127423,1766119438304,204.21,0.0001057,2]
[399127424,1766119438719,255.27,0.0001101,2]
[399127425,1766119439114,306.32,0.0001145,2]
[399127427,1766119439982,357.37,0.00011891,2]
[399127428,1766119440435,408.43,0.00012331,2]
[399127429,1766119448320,-153.12132111,0.00012772,2]
[399127430,1766119452838,-209.45784387,0.00012772,2]
[399127432,1766119513222,150.0,9.991e-05,2]
[399127433,1766119513632,150.0,0.00010466,2]
[399127434,1766119514039,150.0,0.00010942,2]
[399127435,1766119514465,150.0,0.00011418,2]
[399127436,1766119514903,150.0,0.00011894,2]
[399127437,1766119515304,161.43,0.00012369,2]
[399127438,1766119583333,150.0,9.981e-05,2]
[399127439,1766119583715,150.0,0.00010456,2]
[399127440,1766119584615,150.0,0.00010932,2]
[399127441,1766119585051,150.0,0.00011407,2]
[399127442,1766119585458,150.0,0.00011882,2]
[399127443,1766119586342,150.0,0.00012357,2]
[399127447,1766119653979,150.0,0.00010197,2]
[399127448,1766119654276,150.0,0.00010682,2]
[399127449,1766119654685,150.0,0.00011168,2]
[399127450,1766119655100,150.0,0.00011653,2]
[399127451,1766119655524,150.0,0.00012139,2]
[399127453,1766119661850,-150.0,0.00012624,2]
[399127454,1766119661888,-150.0,0.00013059,2]
[399127455,1766119661927,-150.0,0.0001311,2]
[399127456,1766119661957,-500.0,0.00013273,2]
[399127457,1766119661987,-500.0,0.00013273,2]
[399127458,1766119662020,-500.0,0.00013273,2]
[399127459,1766119662055,-500.0,0.00013273,2]
[399127460,1766119662090,-500.0,0.00013273,2]
[399127461,1766119662123,-500.0,0.00013273,2]
[399127462,1766119662155,-500.0,0.00013273,2]
[399127463,1766119662188,-237.0174003,0.00013273,2]
[399127464,1766119662220,-150.0,0.00013596,2]
[399127465,1766119662248,-300.0,0.00013673,2]
[399127466,1766119662278,-225.9751994,0.00013699,2]
[399127467,1766119665817,-274.0248006,0.00013699,2]
[399127468,1766119665849,-500.0,0.00013699,2]
[399127469,1766119665878,-500.0,0.00013699,2]
[399127470,1766119665910,-513.56051021,0.00013821,2]
[399127471,1766119665939,-1000.0,0.00013821,2]
[399127472,1766119665969,-1000.0,0.00013821,2]
[399127473,1766119666000,-964.2033132,0.00013821,2]
[399127474,1766119669820,-1000.0,0.00013821,2]
[399127475,1766119669848,-1000.0,0.00013821,2]
[399127476,1766119669877,-970.2843089,0.00013821,2]
[399127477,1766119669905,-600.0,0.00014221,2]
[399127478,1766119669933,-500.0,0.00014247,2]
[399127479,1766119669964,-859.4413822,0.00014247,2]
[399127480,1766119673973,-140.5586178,0.00014247,2]
[399127481,1766119674005,-1000.0,0.00014247,2]
[399127482,1766119674036,-822.0,0.00014367,2]
[399127483,1766119746610,500.0,0.00013273,2]
[399127484,1766119746658,1000.0,0.00013821,2]
[399127485,1766119754303,500.0,0.00013273,2]
[399127486,1766119754361,1000.0,0.00013821,2]
[399127488,1766119756331,153.12132111,0.00013273,2]
[399127489,1766119756874,209.45784387,0.00013273,2]
[399127490,1766119769862,500.0,0.00013273,2]
[399127491,1766119769925,926.62035546,0.00013821,2]
[399127503,1766119810120,500.0,0.00013273,2]
[399127504,1766119810167,1000.0,0.00013821,2]
[399127505,1766119810282,300.0,0.00013673,2]
[399127506,1766119810409,600.0,0.00014221,2]
[399127507,1766119810530,500.0,0.00013273,2]
[399127508,1766119810585,1000.0,0.00013821,2]
[399127509,1766119812580,500.0,0.00013699,2]
[399127525,1766119832427,-712.25900943,0.00014247,2]
[399127529,1766119832483,-287.74099057,0.00014247,2]
[399127530,1766119832493,-246.90281667,0.00014368,2]
[399127536,1766119838376,-745.20190271,0.00014368,2]
[399127537,1766119838389,-479.50755848,0.00014368,2]
[399127538,1766119838431,-28.38772214,0.00014368,2]
[399127539,1766119838441,-1500.0,0.00014368,2]
[399127540,1766119838450,-1500.0,0.00014368,2]
[399127543,1766119838464,-300.0,0.00014374,2]
[399127545,1766119838473,-3841.84507581,0.00014375,2]
[399127547,1766119838485,-212.05601669,0.00014375,2]
[399127549,1766119838494,-477.93629416,0.00014768,2]
[399127710,1766119840622,-422.06370584,0.00014768,2]
[399127711,1766119840632,-2000.0,0.00014916,2]
[399127712,1766119840641,-177.0,0.00015059,2]
[399127713,1766119840652,-500.0,0.00015086,2]
[399127714,1766119840661,-500.0,0.00015086,2]
[399127716,1766119840671,-451.66079124,0.00015086,2]
[399127718,1766119840679,-500.0,0.00015086,2]
[399127719,1766119840688,-500.0,0.00015086,2]
[399127722,1766119840697,-500.0,0.00015086,2]
[399127724,1766119840707,-500.0,0.00015086,2]
[399127726,1766119840717,-470.09666243,0.00015086,2]
[399127727,1766119840726,-500.0,0.00015086,2]
[399127729,1766119840735,-528.26596619,0.00015086,2]
[399127732,1766119840744,-500.0,0.00015086,2]
[399127734,1766119840754,-500.0,0.00015086,2]
[399127735,1766119840765,-500.0,0.00015086,2]
[399127737,1766119840774,-500.0,0.00015086,2]
[399127739,1766119840783,-500.0,0.00015086,2]
[399127741,1766119840792,-500.0,0.00015086,2]
[399127743,1766119840802,-500.0,0.00015086,2]
[399127745,1766119840811,-500.0,0.00015086,2]
[399127747,1766119840821,-500.0,0.00015086,2]
[399127749,1766119840830,-500.0,0.00015086,2]
[399127751,1766119840841,-500.0,0.00015086,2]
[399127754,1766119840850,-500.0,0.00015086,2]
[399127755,1766119840859,-500.0,0.00015086,2]
[399127757,1766119840868,-500.0,0.00015086,2]
[399127759,1766119840877,-500.0,0.00015086,2]
[399127761,1766119840886,-998.60195726,0.00015088,2]
[399127763,1766119840895,-300.0,0.00015089,2]
[399127765,1766119840904,-300.0,0.00015089,2]
[399127768,1766119840915,-300.0,0.00015089,2]
[399127770,1766119840927,-300.0,0.00015089,2]
[399127772,1766119840937,-300.0,0.00015089,2]
[399127774,1766119840946,-300.0,0.00015089,2]
[399127776,1766119840955,-300.0,0.00015089,2]
[399127778,1766119840966,-300.0,0.00015089,2]
[399127780,1766119840975,-300.0,0.00015089,2]
[399127782,1766119840984,-300.0,0.00015089,2]
[399127784,1766119840994,-300.0,0.00015089,2]
[399127786,1766119841003,-300.0,0.00015089,2]
[399127788,1766119841013,-300.0,0.00015089,2]
[399127789,1766119841023,-300.0,0.00015089,2]
[399127791,1766119841032,-300.0,0.00015089,2]
[399127793,1766119841042,-271.8337655,0.00015285,2]
[399127795,1766119841053,-527.44235505,0.00015316,2]
[399127798,1766119841063,-421.5202078,0.00015383,2]
[399127800,1766119841073,-311.86785985,0.00015464,2]
[399127802,1766119841082,-303.00648775,0.00015753,2]
[399127804,1766119841091,-3466.06199144,0.00016959,2]
[399127806,1766119841103,-4638.2567345,0.00016959,2]
[399127808,1766119841114,-1213.67474221,0.00016959,2]
[399127810,1766119841124,-204.0,0.00017059,2]
[399127812,1766119841134,-904.5475999,0.00017329,2]
[399127814,1766119841143,-421.5202078,0.0001735,2]
[399127816,1766119841152,-201.8318508,0.00017988,2]
[399127818,1766119841162,-271.8337655,0.00018087,2]
[399127820,1766119841171,-303.00648775,0.00018538,2]
[399127822,1766119841192,-231.0,0.00019059,2]
[399127824,1766119841213,-421.5202078,0.00019318,2]
[399127826,1766119841224,-263.533254,0.00020187,2]
[399127828,1766119841236,-271.8337655,0.00020889,2]
[399127830,1766119841246,-258.0,0.00021059,2]
[399127832,1766119841257,-421.5202078,0.00021285,2]
[399127834,1766119841268,-303.00648775,0.00021322,2]
[399127836,1766119841278,-500.0,0.00022,2]
[399127838,1766119841289,-170.93248583,0.00022501,2]
[399127840,1766119841299,-500.0,0.00022531,2]
[399127842,1766119841310,-1857.68437371,0.00022543,2]
[399127844,1766119841320,-309.2255583,0.00022698,2]
[399127846,1766119841329,-127.96229835,0.00023059,2]
[399127848,1766119841341,-157.03770165,0.00023059,2]
[399127851,1766119841351,-163.1002592,0.00023505,2]
[399127852,1766119841361,-73.52774857,0.00023692,2]
[399128116,1766119843910,-198.30601693,0.00023692,2]
[399128118,1766119843919,-500.0,0.000237,2]
[399128119,1766119843928,-160.0,0.000239,2]
[399128122,1766119843938,-148.17657218,0.00024106,2]
[399128131,1766119844018,-154.82991557,0.00024106,2]
[399128133,1766119844028,-260.0,0.00024448,2]
[399128135,1766119844037,-600.0,0.00024588,10]
[399128137,1766119844047,-151.75927968,0.00024658,2]
[399128139,1766119844056,-360.0,0.00024996,2]
[399128141,1766119844065,-303.91888255,0.00025,2]
[399128143,1766119844077,-196.08111745,0.00025,2]
[399128145,1766119844086,-312.0,0.00025059,2]
[399128147,1766119844095,-530.39719388,0.00025204,14]
[399128149,1766119844106,-2814.60280612,0.00025204,14]
[399128151,1766119844115,-200.0,0.00025544,2]
[399128153,1766119844124,-192.451,0.00026676,14]
[399128156,1766119844132,-263.533254,0.00026676,2]
[399128159,1766119844141,-303.30949424,0.0002689,2]
[399128162,1766119844150,-720.0,0.00027047,30]
[399128165,1766119844159,-339.0,0.00027059,2]
[399128168,1766119844169,-150.63760293,0.00027397,5]
[399128171,1766119844178,-245.22450284,0.00028959,2]
[399128173,1766119844188,-321.58,0.0002898,10]
[399128175,1766119844197,-9150.83122062,0.0002898,2]
[399128177,1766119844206,-500.0,0.00028989,2]
[399128179,1766119844215,-500.0,0.00028989,2]
[399128180,1766119844224,-323.49141723,0.00028989,2]
[399128182,1766119844233,-192.24182347,0.00028989,2]
[399128184,1766119844242,-7276.38292995,0.0002899,2]
[399128187,1766119844254,-11874.6777346,0.0002899,2]
[399128189,1766119844264,-5465.64002953,0.0002899,2]
[399128191,1766119844275,-466.01417055,0.0002899,2]
[399128409,1766119846670,-879.9514622,0.0002899,2]
[399129028,1766119874217,500.0,0.00013273,2]
[399129029,1766119928839,500.0,0.00013273,2]
[399129030,1766119928888,1007.21829996,0.00013821,2]
[399129031,1766119929156,500.0,0.00013699,2]
[399129032,1766119948221,-1698.33224146,0.00014104,2]
[399129033,1766119977261,150.0,0.00010209,2]
[399129034,1766119977711,150.0,0.00010695,2]
[399129035,1766119983886,500.0,0.00013273,2]
[399129036,1766119983938,1000.0,0.00013821,2]
[399129037,1766119990387,192.16490992,0.00013699,2]
[399129046,1766119991832,576.46960441,0.00013273,2]
[399129047,1766120001627,500.0,0.00013699,2]
[399129048,1766120042067,150.0,0.00011171,2]
[399129049,1766120049948,500.0,0.00013699,2]
[399129050,1766120104189,500.0,0.00013273,2]
[399129051,1766120104222,501.27079192,0.00013699,2]
[399129052,1766120104250,1000.0,0.00013821,2]
[399129053,1766120108167,500.0,0.00013273,2]
[399129054,1766120108216,448.62294527,0.00013821,2]